bitfinex/quotes_SOLUSD_20250726
["timestamp","ask_amount","ask_price","bid_price","bid_amount"]
[1753548559147,0.66,186.8,186.77,4.90171496]
[1753548559646,0.66,186.81,186.78,4.90171496]
[1753548560366,6.01303518,186.81,186.78,4.90171496]
[1753548560864,5.35303518,186.81,186.75,42.81470951]
[1753548561039,0.66,186.8,186.77,4.90171496]
[1753548563066,0.69,186.82,186.78,4.90171496]
[1753548563259,4.70525867,186.82,186.78,4.90171496]
[1753548564349,4.70525867,186.82,186.78,5.12171496]
[1753548564552,4.04525867,186.82,186.79,0.22]
[1753548564748,0.03,186.82,186.8,3.15294232]
[1753548565542,0.72,186.82,186.8,3.15294232]
[1753548566769,0.72,186.82,186.8,4.92687325]
[1753548566944,0.03,186.82,186.8,4.92687325]
[1753548568172,0.03,186.82,186.81,4.92687325]
[1753548568767,0.03,186.82,186.81,10.49990574]
[1753548570391,0.03,186.82,186.81,5.14687325]
[1753548570549,0.03,186.82,186.81,10.49990574]
[1753548576574,0.03,186.82,186.81,10.27990574]
[1753548580773,0.03,186.82,186.81,10.49990574]
[1753548580978,0.03,186.82,186.81,10.27990574]
[1753548581554,0.03,186.82,186.81,47.65990574]
[1753548582973,0.03,186.82,186.81,47.87990574]
[1753548583863,0.72,186.82,186.81,42.30687325]
[1753548584580,0.72,186.82,186.8,4.92687325]
[1753548584758,0.72,186.82,186.77,4.92687325]
[1753548584955,6.07276384,186.82,186.78,37.38]
[1753548585369,0.69,186.81,186.78,37.38]
[1753548589482,6.0430624,186.81,186.78,37.38]
[1753548589675,0.69,186.8,186.78,37.38]
[1753548590183,0.03,186.82,186.78,37.38]
[1753548590385,0.69,186.79,186.78,37.38]
[1753548590785,0.69,186.81,186.78,47.66076552]
[1753548590961,0.03,186.82,186.8,4.92687325]
[1753548591167,0.03,186.82,186.81,42.30687325]
[1753548591468,0.03,186.82,186.81,47.65990574]
[1753548591666,0.03,186.82,186.81,47.87990574]
[1753548591866,0.03,186.82,186.81,48.41520898]
[1753548594670,0.03,186.82,186.81,10.81520898]
[1753548595007,0.03,186.82,186.81,42.30687325]
[1753548596082,0.03,186.82,186.81,42.52687325]
[1753548596700,0.03,186.82,186.81,42.30687325]
[1753548597083,0.69,186.82,186.8,0.5353319]
[1753548597284,0.03,186.82,186.75,5.35475234]
[1753548597484,0.03,186.82,186.77,4.92687325]
[1753548597905,0.66,186.81,186.77,4.92687325]
[1753548598401,0.66,186.81,186.78,42.70687325]
[1753548598605,0.66,186.8,186.78,42.70687325]
[1753548598795,0.03,186.82,186.79,4.92687325]
[1753548598997,0.69,186.82,186.8,42.70687325]
[1753548599395,0.69,186.82,186.8,37.78]
[1753548599907,1.6109,186.81,186.75,4.92687325]
[1753548600093,1.6109,186.81,186.76,42.78687325]
[1753548600284,0.03,186.82,186.8,4.92687325]
[1753548600605,0.03,186.82,186.81,37.88]
[1753548600903,0.03,186.82,186.81,43.23303249]
[1753548600904,0.69,186.82,186.81,43.23303249]
[1753548601284,0.69,186.82,186.81,48.15990574]
[1753548601501,0.03,186.82,186.81,48.15990574]
[1753548602801,0.03,186.82,186.81,10.27990574]
[1753548602802,0.69,186.82,186.81,10.27990574]
[1753548602998,0.69,186.82,186.81,48.15990574]
[1753548603301,0.03,186.82,186.81,48.15990574]
[1753548605899,0.03,186.85,186.82,0.28432314]
[1753548606101,0.03,186.85,186.81,152.04681011]
[1753548606102,0.03,186.85,186.84,31.21119639]
[1753548606307,0.03,186.86,186.84,69.09119639]
[1753548606502,0.03,186.86,186.85,4.92687325]
[1753548606817,0.03,186.86,186.85,5.14687325]
[1753548607325,0.69,186.91,186.88,26.0]
[1753548607326,0.03,186.91,186.88,26.0]
[1753548607621,0.03,186.91,186.9,9.8537465]
[1753548608126,0.03,186.94,186.93,26.0]
[1753548608295,0.03,186.94,186.93,68.84687325]
[1753548609719,0.03,186.94,186.93,74.19646935]
[1753548610423,0.03,186.96,186.94,16.78468397]
[1753548610598,0.03,186.96,186.95,69.11119639]
[1753548610802,0.03,186.96,186.95,31.21119639]
[1753548611000,0.03,186.96,186.95,69.15119639]
[1753548611911,0.03,186.97,186.96,5.34873769]
[1753548612114,0.03,186.97,186.96,10.27561094]
[1753548612732,0.03,187.0,186.99,26.0]
[1753548612910,0.03,187.0,186.99,73.7937465]
[1753548613217,0.66,187.07,187.0,0.28432314]
[1753548613420,0.66,187.07,187.06,4.92687325]
[1753548613637,0.66,187.07,187.06,37.94]
[1753548614136,0.66,187.07,187.06,42.86687325]
[1753548615005,0.66,187.09,187.06,48.21275157]
[1753548615204,0.1,187.1,187.08,4.92687325]
[1753548615433,0.1,187.1,187.09,37.96]
[1753548616325,0.76,187.1,187.09,37.96]
[1753548616635,0.76,187.1,187.09,42.88687325]
[1753548617735,0.76,187.1,187.09,37.96]
[1753548618201,0.76,187.1,187.09,42.88687325]
[1753548619938,0.76,187.1,187.06,4.92687325]
[1753548620128,0.76,187.1,187.07,37.92]
[1753548620647,11.03173693,187.1,187.08,37.92]
[1753548620828,0.66,187.09,187.08,37.2]
[1753548621135,0.66,187.09,187.07,37.92]
[1753548621738,6.00519433,187.09,187.07,37.92]
[1753548621924,0.66,187.08,187.07,37.92]
[1753548622513,5.58687325,187.08,187.02,4.92687325]
[1753548622716,5.58687325,187.08,187.0,5.34755197]
[1753548622717,5.58687325,187.07,187.03,37.92]
[1753548622919,0.66,187.06,187.03,37.92]
[1753548624023,0.66,187.05,187.03,37.92]
[1753548624735,0.66,187.05,187.01,4.92687325]
[1753548624947,0.66,187.05,187.02,37.9]
[1753548625520,0.69,187.04,187.02,37.9]
[1753548625929,0.69,187.04,187.02,37.96]
[1753548626830,0.69,187.03,187.02,37.96]
[1753548627220,0.69,187.08,187.02,48.9038559]
[1753548627534,0.69,187.08,187.05,4.92687325]
[1753548627734,0.69,187.09,187.06,37.94]
[1753548627940,0.69,187.09,187.06,42.86687325]
[1753548629347,0.1,187.1,187.07,4.92687325]
[1753548629649,0.1,187.1,187.08,42.86687325]
[1753548629851,0.1,187.1,187.09,4.92687325]
[1753548630345,0.1,187.1,187.09,5.59687325]
[1753548630548,0.1,187.1,187.09,10.94189436]
[1753548631942,0.1,187.1,187.09,4.92687325]
[1753548632352,6.13477754,187.1,187.02,0.73]
[1753548632548,6.13477754,187.1,187.03,37.94]
[1753548632549,0.69,187.09,187.03,37.94]
[1753548632728,0.69,187.09,187.03,42.86687325]
[1753548633326,0.1,187.1,187.08,4.92687325]
[1753548633538,0.1,187.1,187.09,42.88687325]
[1753548634857,0.1,187.1,187.09,48.23189436]
[1753548635040,0.1,187.1,187.09,48.90189436]
[1753548635724,0.1,187.1,187.09,53.82876761]
[1753548636053,0.1,187.1,187.09,10.27189436]
[1753548636256,0.1,187.1,187.09,42.94687325]
[1753548636453,0.1,187.1,187.09,48.29189436]
[1753548636836,0.1,187.1,187.09,51.2215885]
[1753548637036,0.1,187.1,187.09,51.2415885]
[1753548637349,0.1,187.1,187.09,51.9115885]
[1753548639744,0.1,187.1,187.09,51.2415885]
[1753548640465,0.1,187.1,187.09,45.89656739]
[1753548640659,0.79,187.1,187.09,38.0]
[1753548644342,6.13473543,187.1,187.09,38.0]
[1753548644688,13.99130282,187.1,187.03,7.85656739]
[1753548644847,13.30130282,187.1,187.04,38.0]
[1753548645046,0.69,187.09,187.04,45.85656739]
[1753548645268,0.69,187.09,187.05,7.85656739]
[1753548645582,0.69,187.09,187.06,37.98]
[1753548646194,0.1,187.1,187.06,45.83656739]
[1753548646469,0.1,187.1,187.06,46.50656739]
[1753548646672,0.1,187.1,187.06,51.85242738]
[1753548647250,0.1,187.1,187.06,46.50656739]
[1753548647774,0.69,187.09,187.06,37.98]
[1753548648084,0.69,187.08,187.06,37.98]
[1753548648268,13.30135028,187.1,187.03,13.20325291]
[1753548648473,0.69,187.07,187.04,37.96]
[1753548649785,5.34506913,187.09,187.04,37.96]
[1753548649952,0.69,187.06,187.04,37.96]
[1753548651067,0.69,187.08,187.04,37.96]
[1753548651370,0.69,187.07,187.04,37.96]
[1753548652875,5.34506913,187.09,187.04,37.96]
[1753548653171,7.95656739,187.1,187.04,45.81656739]
[1753548653172,0.69,187.08,187.04,45.81656739]
[1753548655863,6.03535083,187.08,187.04,37.96]
[1753548656174,0.68,187.07,187.04,37.96]
[1753548656375,5.34535083,187.08,187.04,37.96]
[1753548656683,6.02535083,187.08,187.04,37.96]
[1753548657268,0.68,187.08,187.04,37.96]
[1753548657871,5.34509791,187.09,187.04,43.54411706]
[1753548658182,6.02509791,187.09,187.04,43.54411706]
[1753548659058,5.01411706,187.1,187.05,0.67]
[1753548659259,0.1,187.1,187.06,38.55]
[1753548659455,0.1,187.1,187.07,0.67]
[1753548659681,0.1,187.1,187.08,37.88]
[1753548660187,0.1,187.1,187.08,38.55]
[1753548662878,0.1,187.1,187.09,0.67]
[1753548663081,0.1,187.1,187.09,5.58411706]
[1753548664187,0.1,187.1,187.09,10.92913817]
[1753548667405,0.1,187.1,187.09,16.37775734]
[1753548667566,0.1,187.12,187.11,26.0]
[1753548667767,0.1,187.12,187.11,69.30856203]
[1753548667964,0.1,187.12,187.11,69.97856203]
[1753548668167,0.1,187.12,187.11,70.26288517]
[1753548668387,0.1,187.12,187.11,76.86578517]
[1753548668586,0.1,187.13,187.12,17.06900711]
[1753548668872,1e-08,187.13,187.12,114.18112417]
[1753548669180,1e-08,187.13,187.12,119.52528834]
[1753548669981,1e-08,187.13,187.12,97.54216417]
[1753548670170,1e-08,187.13,187.12,140.31628123]
[1753548671798,1e-08,187.13,187.12,94.91411706]
[1753548671972,0.68000001,187.13,187.12,37.88]
[1753548675508,1e-08,187.13,187.12,37.88]
[1753548676806,1e-08,187.13,187.12,42.79411706]
[1753548677014,1e-08,187.13,187.12,43.46411706]
[1753548677195,1e-08,187.13,187.12,48.80828123]
[1753548677814,1e-08,187.13,187.12,10.25828123]
[1753548678115,1e-08,187.13,187.12,48.11828123]
[1753548678788,1e-08,187.13,187.12,51.05792076]
[1753548678987,1e-08,187.13,187.12,45.71375659]
[1753548679414,1e-08,187.13,187.12,51.72792076]
[1753548683214,1e-08,187.13,187.12,167.72792076]
[1753548683402,1e-08,187.13,187.12,94.79692787]
[1753548683604,1e-08,187.13,187.12,95.33134428]
[1753548685018,1e-08,187.14,187.13,49.23228397]
[1753548685321,1e-08,187.14,187.13,57.76604056]
[1753548686219,1e-08,187.14,187.13,63.10991914]
[1753548686796,1e-08,187.14,187.13,153.10991914]
[1753548693102,1e-08,187.14,187.13,127.10991914]
[1753548696615,1e-08,187.14,187.13,127.39424228]
[1753548697717,0.03,187.18,187.17,0.28432314]
[1753548698033,0.03,187.18,187.17,136.39235338]
[1753548698334,0.03,187.18,187.17,135.85807973]
[1753548698808,0.03,187.18,187.17,132.90908108]
[1753548699403,0.03,187.18,187.17,150.37376505]
[1753548699600,0.03,187.18,187.17,155.03650159]
[1753548700019,0.03,187.18,187.17,155.71650159]
[1753548701225,0.03,187.18,187.17,155.03650159]
[1753548702415,0.73,187.18,187.17,90.0]
[1753548702631,0.73,187.18,187.17,127.72]
[1753548702835,0.73,187.18,187.17,37.72]
[1753548710220,5.63475794,187.18,187.17,37.72]
[1753548711739,10.97720905,187.18,187.09,94.90475794]
[1753548711947,4.90475794,187.15,187.09,90.0]
[1753548712128,0.7,187.14,187.1,37.68]
[1753548712539,0.7,187.13,187.1,37.68]
[1753548713060,0.7,187.16,187.11,4.90475794]
[1753548713360,0.7,187.16,187.12,37.68]
[1753548715065,0.7,187.16,187.12,43.02410043]
[1753548715769,0.67,187.15,187.12,43.02410043]
[1753548718366,0.67,187.14,187.12,37.68]
[1753548718552,5.57475794,187.14,187.1,90.0]
[1753548718757,5.57475794,187.14,187.11,37.66]
[1753548719069,0.67,187.13,187.11,37.66]
[1753548719647,5.57475794,187.13,187.11,37.66]
[1753548719863,4.90475794,187.13,187.11,37.66]
[1753548720168,0.67,187.12,187.11,37.66]
[1753548720379,5.57475794,187.12,187.11,37.66]
[1753548720756,5.57475794,187.12,187.08,0.06]
[1753548720975,5.57475794,187.11,187.09,37.66]
[1753548721366,0.67,187.1,187.09,37.66]
[1753548731174,4.90475794,187.12,187.09,37.66]
[1753548731377,0.67,187.11,187.09,37.66]
[1753548731578,4.90475794,187.12,187.09,37.66]
[1753548731785,5.57475794,187.12,187.09,37.66]
[1753548732173,4.90475794,187.12,187.09,37.66]
[1753548732478,0.67,187.11,187.09,37.66]
[1753548733879,0.67,187.11,187.09,37.72]
[1753548734080,4.90475794,187.11,187.09,37.72]
[1753548734262,0.67,187.1,187.09,37.72]
[1753548735280,5.57475794,187.12,187.09,37.72]
[1753548735472,4.90475794,187.12,187.09,37.72]
[1753548735679,0.67,187.11,187.09,37.72]
[1753548738091,4.90475794,187.13,187.09,43.73501348]
[1753548738385,0.67,187.12,187.09,37.72]
[1753548738590,5.57475794,187.12,187.09,37.72]
[1753548738785,4.90475794,187.12,187.09,37.72]
[1753548738964,0.67,187.11,187.09,37.72]
[1753548739565,5.57475794,187.13,187.09,37.72]
[1753548739766,4.90475794,187.14,187.1,0.67]
[1753548739987,4.90475794,187.14,187.11,37.58]
[1753548740188,5.57475794,187.14,187.11,37.58]
[1753548742086,0.67,187.13,187.11,37.58]
[1753548742297,0.67,187.12,187.11,37.58]
[1753548742485,0.67,187.14,187.11,37.58]
[1753548742688,0.67,187.13,187.11,37.58]
[1753548742894,4.90475794,187.13,187.11,37.58]
[1753548743063,5.57475794,187.12,187.11,37.58]
[1753548743674,10.91892211,187.12,187.11,37.58]
[1753548744078,5.57475794,187.12,187.11,37.58]
[1753548744605,10.91892211,187.12,187.11,37.58]
[1753548744892,10.91892211,187.12,187.09,37.64]
[1753548745095,4.90475794,187.1,187.09,37.64]
[1753548745288,5.56475794,187.11,187.09,37.64]
[1753548745486,4.90475794,187.12,187.09,37.64]
[1753548745669,5.56475794,187.13,187.09,38.36]
[1753548746684,0.66,187.15,187.1,0.72]
[1753548746878,4.90475794,187.14,187.1,0.72]
[1753548747086,0.66,187.15,187.11,0.72]
[1753548747394,5.56475794,187.15,187.12,37.56]
[1753548747590,5.56475794,187.14,187.12,37.56]
[1753548747794,5.56475794,187.13,187.1,37.56]
[1753548747971,0.66,187.12,187.1,37.56]
[1753548748392,4.90475794,187.13,187.1,37.56]
[1753548748702,5.56475794,187.13,187.09,0.06]
[1753548748874,4.90475794,187.13,187.1,37.58]
[1753548749074,5.56475794,187.12,187.1,37.58]
[1753548749275,0.66,187.11,187.1,37.58]
[1753548749802,5.56475794,187.11,187.1,37.58]
[1753548750091,5.56475794,187.11,187.09,0.06]
[1753548750297,5.56475794,187.11,187.09,37.62]
[1753548750901,4.90475794,187.12,187.09,37.62]
[1753548751281,5.56475794,187.12,187.09,37.62]
[1753548752193,4.90475794,187.13,187.09,38.34]
[1753548752784,5.56475794,187.13,187.09,38.34]
[1753548753101,4.90475794,187.14,187.1,0.72]
[1753548753487,4.90475794,187.14,187.11,0.72]
[1753548754078,5.56475794,187.16,187.12,38.26]
[1753548754401,4.90475794,187.16,187.12,38.26]
[1753548754604,31.37253339,187.18,187.12,38.26]
[1753548754605,4.90475794,187.17,187.13,0.72]
[1753548754809,5.56475794,187.17,187.13,0.72]
[1753548755899,0.03,187.14,187.13,0.72]
[1753548757196,0.03,187.14,187.13,6.06387858]
[1753548757501,0.03,187.14,187.13,10.96863652]
[1753548760792,0.03,187.14,187.13,6.06387858]
[1753548761095,0.03,187.14,187.12,42.88415562]
[1753548761315,0.69,187.14,187.13,37.52]
[1753548762410,5.59475794,187.14,187.13,37.52]
[1753548762783,0.69,187.14,187.13,37.52]
[1753548764085,0.69,187.14,187.11,37.54]
[1753548766523,0.69,187.14,187.11,38.26]
[1753548766524,0.03,187.14,187.11,38.26]
[1753548767024,0.03,187.14,187.11,43.60436081]
[1753548769316,0.03,187.14,187.12,0.72]
[1753548769622,0.03,187.14,187.11,42.88436081]
[1753548769819,0.03,187.14,187.11,43.60436081]
[1753548781034,0.69,187.14,187.11,38.26]
[1753548781239,0.69,187.14,187.11,37.54]
[1753548781525,4.90475794,187.12,187.09,0.06]
[1753548781727,5.56475794,187.11,187.09,37.56]
[1753548781909,4.90475794,187.11,187.09,37.56]
[1753548782109,0.66,187.1,187.09,37.56]
[1753548782310,5.56475794,187.1,187.09,37.56]
[1753548782724,5.56475794,187.1,187.09,0.06]
[1753548783230,10.90949337,187.1,187.09,0.06]
[1753548785508,27.69417734,187.1,187.09,0.06]
[1753548788137,32.59893528,187.1,187.09,0.06]
[1753548788313,36.59303919,187.1,187.09,0.06]
[1753548788514,40.17852749,187.1,187.09,0.06]
[1753548788735,36.59303919,187.1,187.09,0.06]
[1753548789235,32.59893528,187.1,187.09,0.06]
[1753548791449,70.11893528,187.1,187.09,0.06]
[1753548792642,74.31294031,187.1,187.09,0.06]
[1753548793342,69.40818237,187.1,187.09,0.06]
[1753548793641,86.16818723,187.1,187.09,0.06]
[1753548793845,86.16818723,187.1,187.09,1e-08]
[1753548794141,89.74779381,187.1,187.09,1e-08]
[1753548794517,42.78468397,187.08,187.07,0.06]
[1753548794719,47.68944191,187.08,187.07,0.06]
[1753548795240,48.34944191,187.08,187.07,0.06]
[1753548795447,53.69474873,187.08,187.07,0.06]
[1753548796245,53.03474873,187.08,187.07,0.06]
[1753548797222,10.25006476,187.08,187.07,0.73]
[1753548798624,5.34530682,187.08,187.07,0.73]
[1753548798830,10.24982498,187.09,187.07,0.73]
[1753548801250,10.24982498,187.09,187.07,0.06]
[1753548802027,10.24982498,187.09,187.07,0.73]
[1753548803151,10.24982498,187.09,187.07,0.06]
[1753548803336,4.90475794,187.08,187.07,0.06]
[1753548813434,6.00506704,187.09,187.07,0.06]
[1753548813632,10.25006476,187.08,187.07,0.06]
[1753548813835,10.91006476,187.08,187.07,0.06]
[1753548814953,9.15114933,187.08,187.07,0.06]
[1753548815160,25.9358333,187.08,187.07,0.06]
[1753548818272,51.9358333,187.08,187.07,0.06]
[1753548818835,53.70715179,187.08,187.07,0.06]
[1753548820863,53.73715179,187.08,187.07,0.06]
[1753548822164,57.73193265,187.08,187.07,0.06]
[1753548823352,61.31926677,187.08,187.07,0.06]
[1753548824174,53.73715179,187.08,187.07,0.06]
[1753548825253,57.73703737,187.08,187.07,0.06]
[1753548826487,61.32825499,187.08,187.07,0.06]
[1753548834499,77.7923534,187.08,187.07,0.06]
[1753548834663,10.29246782,187.08,187.07,0.06]
[1753548835283,5.37530682,187.08,187.07,0.76]
[1753548836803,10.29246782,187.08,187.07,0.06]
[1753548839576,4.947161,187.08,187.07,0.76]
[1753548840277,0.03,187.08,187.07,0.76]
[1753548842907,0.71,187.08,187.07,0.06]
[1753548843069,3.85524435,187.08,187.07,0.06]
[1753548843271,20.63992832,187.08,187.07,0.06]
[1753548843576,28.24037295,187.08,187.07,0.06]
[1753548845077,33.58567977,187.08,187.07,0.06]
[1753548845798,33.58587996,187.08,187.07,0.06]
[1753548848779,59.58587996,187.08,187.07,0.06]
[1753548849378,16.78468397,187.07,187.06,0.06]
[1753548849578,65.71057314,187.07,187.06,1e-08]
[1753548850416,65.71029612,187.07,187.06,1e-08]
[1753548850705,71.05588867,187.07,187.06,1e-08]
[1753548850890,72.82933395,187.07,187.06,1e-08]
[1753548855089,72.82933395,187.07,187.05,1e-08]
[1753548855288,29.98172162,187.06,187.05,1e-08]
[1753548856392,35.32759994,187.06,187.05,1e-08]
[1753548859487,42.78468397,187.04,187.03,0.06]
[1753548859798,92.80172162,187.04,187.03,0.06]
[1753548860204,93.48172162,187.04,187.03,0.06]
[1753548860422,92.80172162,187.04,187.03,0.06]
[1753548860801,98.14817157,187.04,187.03,0.06]
[1753548861486,94.55143831,187.04,187.03,0.76]
[1753548861708,90.54982355,187.04,187.03,0.76]
[1753548862108,48.13113392,187.04,187.03,0.76]
[1753548862305,54.28468397,187.06,187.03,0.76]
[1753548862505,5.34559255,187.07,187.03,0.76]
[1753548863102,21.7033736,187.06,187.03,0.76]
[1753548863611,21.7033736,187.06,187.04,0.7]
[1753548864598,21.7033736,187.06,187.03,0.06]
[1753548864802,5.34616412,187.05,187.03,0.77]
[1753548865321,5.34616412,187.05,187.04,0.71]
[1753548869630,16.78468397,187.04,187.03,0.06]
[1753548869833,59.2033736,187.04,187.03,0.06]
[1753548870128,65.22982355,187.04,187.03,0.06]
[1753548871904,72.82256999,187.04,187.03,0.06]
[1753548873610,72.82256999,187.04,187.03,1e-08]
[1753548873812,42.78468397,187.02,187.01,0.06]
[1753548874126,46.37849362,187.02,187.01,0.06]
[1753548874340,85.1833736,187.02,187.01,0.06]
[1753548874636,85.8633736,187.02,187.01,0.06]
[1753548875129,85.1833736,187.02,187.01,0.06]
[1753548875442,85.1833736,187.02,187.01,0.77]
[1753548875614,10.26560265,187.03,187.01,0.77]
[1753548876003,21.7033736,187.05,187.02,0.71]
[1753548876225,5.34623519,187.05,187.02,0.71]
[1753548877313,22.13091916,187.05,187.02,0.71]
[1753548877716,27.04960879,187.05,187.02,0.71]
[1753548879519,22.3833736,187.04,187.01,0.06]
[1753548879711,4.91868963,187.03,187.01,0.06]
[1753548879908,5.34693355,187.03,187.01,0.06]
[1753548880523,5.34693355,187.03,187.02,0.71]
[1753548880933,5.34693355,187.03,187.01,0.06]
[1753548884616,0.68,187.02,187.01,0.06]
[1753548884814,10.26562318,187.03,187.01,0.06]
[1753548885337,10.94562318,187.03,187.01,0.06]
[1753548886235,6.02693355,187.03,187.01,0.06]
[1753548886538,10.94562318,187.03,187.01,0.06]
[1753548887726,22.3833736,187.02,187.01,0.06]
[1753548888915,27.7303953,187.02,187.01,0.06]
[1753548891050,22.81170567,187.02,187.01,0.06]
[1753548891341,27.7303953,187.02,187.01,0.06]
[1753548895136,27.0503953,187.02,187.01,0.06]
[1753548895340,31.34686368,187.03,187.01,0.74]
[1753548896438,5.37644995,187.04,187.01,0.74]
[1753548896937,5.37644995,187.04,187.01,0.06]
[1753548897140,5.37644995,187.04,187.02,0.68]
[1753548897540,5.37644995,187.04,187.01,0.06]
[1753548897750,5.37644995,187.04,187.03,0.68]
[1753548898038,0.03,187.04,187.03,0.68]
[1753548898519,0.03,187.04,187.01,0.06]
[1753548898849,0.03,187.04,187.02,0.68]
[1753548899633,0.7,187.04,187.01,0.06]
[1753548900638,6.04670789,187.04,187.01,0.06]
[1753548901020,6.04670789,187.04,187.01,0.74]
[1753548901222,5.37670789,187.04,187.01,0.74]
[1753548902068,0.03,187.04,187.02,0.68]
[1753548902348,0.03,187.04,187.01,4.97868963]
[1753548902648,0.03,187.04,187.03,0.68]
[1753548902819,0.67,187.03,187.01,0.06]
[1753548903019,0.67,187.02,187.01,0.06]
[1753548903831,4.94868963,187.04,187.01,0.06]
[1753548904029,0.67,187.03,187.01,0.06]
[1753548904242,5.58868963,187.03,187.01,0.06]
[1753548904655,5.58868963,187.02,187.01,0.06]
[1753548904824,27.7203953,187.02,187.01,0.06]
[1753548907251,31.72449011,187.02,187.01,0.06]
[1753548908551,31.7242645,187.02,187.01,0.06]
[1753548910155,27.7203953,187.02,187.01,0.06]
[1753548911252,65.2003953,187.02,187.01,0.06]
[1753548911450,64.5303953,187.02,187.01,0.06]
[1753548912463,59.61170567,187.02,187.01,0.06]
[1753548912632,64.5303953,187.02,187.01,0.06]
[1753548913466,65.2003953,187.02,187.01,0.06]
[1753548913770,64.5303953,187.02,187.01,0.06]
[1753548914765,65.2003953,187.02,187.01,0.06]
[1753548916166,59.61170567,187.02,187.01,0.06]
[1753548916380,64.5303953,187.02,187.01,0.06]
[1753548916546,65.2003953,187.02,187.01,0.06]
[1753548916957,27.7203953,187.02,187.01,0.06]
[1753548917840,22.13170567,187.02,187.01,0.06]
[1753548918070,37.48,187.03,187.01,0.06]
[1753548918071,10.26548589,187.03,187.01,0.06]
[1753548918286,31.37646547,187.04,187.01,0.74]
[1753548918589,5.37646547,187.04,187.01,0.74]
[1753548919137,5.37646547,187.04,187.02,0.68]
[1753548920771,5.37646547,187.04,187.01,0.06]
[1753548920973,5.37646547,187.04,187.01,0.74]
[1753548921757,0.67,187.03,187.01,0.06]
[1753548923081,6.01689596,187.03,187.01,0.06]
[1753548924699,5.60868963,187.02,187.01,0.06]
[1753548925099,22.3933736,187.02,187.01,0.06]
[1753548926626,35.34251037,187.02,187.01,0.06]
[1753548927997,5.3470217,187.02,187.01,0.74]
[1753548928681,22.16113392,187.04,187.01,0.74]
[1753548929291,27.76982355,187.04,187.01,0.06]
[1753548929495,4.91868963,187.03,187.01,0.06]
[1753548929796,5.60868963,187.03,187.01,0.06]
[1753548930585,0.03,187.02,187.01,0.06]
[1753548930786,10.98571133,187.02,187.01,0.06]
[1753548930968,27.7703953,187.02,187.01,0.06]
[1753548931177,35.37088078,187.02,187.01,0.06]
[1753548936277,31.08484838,187.02,187.01,0.06]
[1753548937400,4.03445308,187.02,187.01,0.74]
[1753548937601,0.03,187.02,187.01,0.74]
[1753548939793,0.03,187.02,187.01,0.06]
[1753548942214,5.63868963,187.02,187.01,0.06]
[1753548942513,26.42521929,187.02,187.01,0.06]
[1753548942681,30.02095139,187.02,187.01,0.06]
[1753548944010,35.36797309,187.02,187.01,0.06]
[1753548945207,9.37886739,187.02,187.01,0.06]
[1753548948512,14.98850907,187.02,187.01,0.06]
[1753548949994,52.44850907,187.02,187.01,0.06]
[1753548950204,72.82908765,187.02,187.01,0.06]
[1753548954120,72.82820188,187.02,187.01,0.06]
[1753548959723,72.82842522,187.02,187.01,0.06]
[1753548961209,72.13842522,187.02,187.01,0.06]
[1753548961601,0.03,187.02,187.01,0.78]